[Event "MCR rapid mládeže 2023 U16"]
[Site "Harachov, Czech Republic"]
[Date "2023.09.09"]
[Round "3.21"]
[White "Honcharov, Makar"]
[Black "Sotek, Matej"]
[Result "1-0"]
[TimeControl "20min+5s/move"]
[WhiteElo "1593"]
[BlackElo "1410"]

1. e4 {[%clk 00:20:07]} {[%emt 00:00:03]} d5 {[%clk 00:20:09]} 2. exd5 {[%clk
00:20:11]} {[%emt 00:00:01]} Nf6 {[%clk 00:20:13]} {[%emt 00:00:01]} 3. d4
{[%clk 00:20:14]} {[%emt 00:00:01]} Nxd5 {[%clk 00:20:17]} {[%emt 00:00:02]} 4.
c4 {[%clk 00:20:19]} Nf6 {[%clk 00:20:21]} 5. Nc3 {[%clk 00:20:21]} {[%emt
00:00:03]} Bf5 {[%clk 00:20:19]} {[%emt 00:00:07]} 6. Be3 {[%clk 00:20:22]}
{[%emt 00:00:05]} e6 {[%clk 00:20:20]} {[%emt 00:00:04]} 7. Be2 {[%clk
00:20:11]} {[%emt 00:00:15]} c6 {[%clk 00:20:11]} {[%emt 00:00:15]} 8. Nf3
{[%clk 00:19:51]} {[%emt 00:00:24]} Be7 {[%clk 00:20:02]} {[%emt 00:00:14]} 9.
Qb3 {[%clk 00:19:40]} {[%emt 00:00:16]} Qb6 {[%clk 00:20:00]} {[%emt 00:00:07]}
10. Ne5 {[%clk 00:19:15]} {[%emt 00:00:30]} Nbd7 {[%clk 00:19:36]} {[%emt
00:00:30]} 11. Nxd7 {[%clk 00:19:14]} {[%emt 00:00:06]} Nxd7 {[%clk 00:18:50]}
{[%emt 00:00:50]} 12. O-O-O {[%clk 00:18:10]} {[%emt 00:01:09]} Qxb3 {[%clk
00:18:46]} {[%emt 00:00:10]} 13. axb3 {[%clk 00:18:14]} {[%emt 00:00:01]} Nf6
{[%clk 00:18:33]} {[%emt 00:00:17]} 14. Bf3 {[%clk 00:17:12]} {[%emt 00:01:07]}
O-O {[%clk 00:17:20]} {[%emt 00:01:18]} 15. h3 {[%clk 00:16:43]} {[%emt
00:00:34]} Bb4 {[%clk 00:17:12]} {[%emt 00:00:13]} 16. g4 {[%clk 00:15:51]}
{[%emt 00:00:58]} Bg6 {[%clk 00:16:50]} {[%emt 00:00:27]} 17. g5 {[%clk
00:15:41]} {[%emt 00:00:15]} Nd7 {[%clk 00:16:27]} {[%emt 00:00:27]} 18. h4
{[%clk 00:15:33]} {[%emt 00:00:14]} Bxc3 {[%clk 00:16:12]} {[%emt 00:00:20]} 19.
bxc3 {[%clk 00:15:36]} {[%emt 00:00:02]} b5 {[%clk 00:15:57]} {[%emt 00:00:20]}
20. cxb5 {[%clk 00:15:33]} {[%emt 00:00:08]} Rac8 {[%clk 00:15:32]} {[%emt
00:00:29]} 21. Bxc6 {[%clk 00:15:32]} {[%emt 00:00:07]} Nb8 {[%clk 00:15:27]}
{[%emt 00:00:10]} 22. Kb2 {[%clk 00:14:46]} {[%emt 00:00:51]} Nxc6 {[%clk
00:15:25]} {[%emt 00:00:07]} 23. bxc6 {[%clk 00:14:49]} {[%emt 00:00:01]} Rxc6
{[%clk 00:15:03]} {[%emt 00:00:28]} 24. d5 {[%clk 00:14:46]} {[%emt 00:00:08]}
exd5 {[%clk 00:15:02]} {[%emt 00:00:06]} 25. Bxa7 {[%clk 00:14:49]} {[%emt
00:00:02]} Rfc8 {[%clk 00:14:58]} {[%emt 00:00:09]} 26. Bd4 {[%clk 00:14:50]}
{[%emt 00:00:04]} Be4 {[%clk 00:14:54]} {[%emt 00:00:09]} 27. Rhe1 {[%clk
00:14:52]} {[%emt 00:00:02]} Ra8 {[%clk 00:13:09]} {[%emt 00:01:50]} 28. Ra1
{[%clk 00:14:24]} {[%emt 00:00:33]} Rca6 {[%clk 00:12:48]} {[%emt 00:00:27]} 29.
Rxa6 {[%clk 00:14:27]} {[%emt 00:00:03]} Rxa6 {[%clk 00:12:52]} {[%emt
00:00:01]} 30. f3 {[%clk 00:14:30]} {[%emt 00:00:01]} f5 {[%clk 00:12:25]}
{[%emt 00:00:32]} 31. fxe4 {[%clk 00:13:50]} {[%emt 00:00:45]} dxe4 {[%clk
00:12:27]} {[%emt 00:00:03]} 32. Ra1 {[%clk 00:13:54]} {[%emt 00:00:01]} Rxa1
{[%clk 00:11:56]} {[%emt 00:00:36]} 33. Kxa1 {[%clk 00:13:57]} {[%emt
00:00:01]} Kf7 {[%emt 00:00:05]} 34. Kb1 {[%clk 00:13:17]} {[%emt 00:00:42]} h6
{[%clk 00:12:02]} {[%emt 00:00:03]} 35. gxh6 {[%clk 00:13:03]} {[%emt
00:00:19]} gxh6 {[%clk 00:12:06]} {[%emt 00:00:01]} 36. Kc2 {[%clk 00:13:00]}
{[%emt 00:00:09]} Ke6 {[%clk 00:11:47]} {[%emt 00:00:23]} 37. Kd2 {[%clk
00:12:40]} {[%emt 00:00:25]} Kd5 {[%clk 00:11:44]} {[%emt 00:00:08]} 38. Ke3
{[%clk 00:12:42]} {[%emt 00:00:03]} h5 {[%clk 00:11:44]} {[%emt 00:00:05]} 39.
Kf4 {[%clk 00:12:43]} {[%emt 00:00:04]} Ke6 {[%clk 00:11:46]} {[%emt 00:00:02]}
40. c4 {[%clk 00:12:48]} {[%emt 00:00:01]} 1-0

[Event "MCR rapid mládeže 2023 U16"]
[Site "Harachov, Czech Republic"]
[Date "2023.09.09"]
[Round "3.22"]
[White "Belocky, Daniel"]
[Black "Sochor, Antonin"]
[Result "0-1"]
[TimeControl "20min+5s/move"]
[WhiteElo "1369"]
[BlackElo "1480"]

1. d4 {[%clk 00:20:08]} {[%emt 00:00:01]} Nf6 {[%clk 00:20:04]} {[%emt
00:00:06]} 2. Nf3 {[%clk 00:20:11]} {[%emt 00:00:02]} g6 {[%clk 00:20:08]}
{[%emt 00:00:01]} 3. c4 {[%clk 00:20:15]} {[%emt 00:00:01]} Bg7 {[%clk
00:20:12]} {[%emt 00:00:01]} 4. g3 {[%clk 00:20:18]} {[%emt 00:00:02]} O-O
{[%clk 00:20:14]} {[%emt 00:00:03]} 5. Bg2 {[%clk 00:20:22]} {[%emt 00:00:02]}
d6 {[%clk 00:20:17]} {[%emt 00:00:01]} 6. Nc3 {[%clk 00:20:25]} {[%emt
00:00:02]} Nbd7 {[%clk 00:20:17]} {[%emt 00:00:05]} 7. O-O {[%clk 00:20:28]}
{[%emt 00:00:02]} e5 {[%clk 00:20:21]} {[%emt 00:00:01]} 8. h3 {[%clk
00:20:31]} {[%emt 00:00:02]} Qe7 {[%clk 00:20:22]} {[%emt 00:00:04]} 9. Be3
{[%clk 00:20:33]} {[%emt 00:00:02]} Rd8 {[%clk 00:20:08]} {[%emt 00:00:20]} 10.
b4 {[%clk 00:20:14]} {[%emt 00:00:25]} c5 {[%clk 00:20:08]} {[%emt 00:00:04]}
11. bxc5 {[%clk 00:20:12]} {[%emt 00:00:07]} dxc5 {[%clk 00:20:11]} {[%emt
00:00:02]} 12. dxe5 {[%clk 00:19:36]} {[%emt 00:00:42]} Nxe5 {[%clk 00:19:53]}
{[%emt 00:00:21]} 13. Qb3 {[%clk 00:19:36]} {[%emt 00:00:05]} Nxf3+ {[%clk
00:19:28]} {[%emt 00:00:31]} 14. Bxf3 {[%clk 00:19:38]} {[%emt 00:00:02]} Bxh3
{[%clk 00:19:29]} {[%emt 00:00:04]} 15. Rfd1 {[%clk 00:19:32]} {[%emt
00:00:12]} Ng4 {[%clk 00:18:30]} {[%emt 00:01:03]} 16. Bf4 {[%clk 00:18:51]}
{[%emt 00:00:47]} Ne5 {[%clk 00:17:36]} {[%emt 00:00:58]} 17. Qxb7 {[%clk
00:17:55]} {[%emt 00:01:01]} Nxf3+ {[%clk 00:17:29]} {[%emt 00:00:11]} 18. Qxf3
{[%clk 00:17:57]} {[%emt 00:00:04]} Bf5 {[%clk 00:16:11]} {[%emt 00:01:23]} 19.
Rac1 {[%clk 00:17:14]} {[%emt 00:00:49]} Qe6 {[%clk 00:15:35]} {[%emt
00:00:41]} 20. e4 {[%clk 00:16:22]} {[%emt 00:00:57]} Rxd1+ {[%clk 00:15:08]}
{[%emt 00:00:33]} 21. Rxd1 {[%clk 00:16:22]} {[%emt 00:00:05]} Bg4 {[%clk
00:15:09]} {[%emt 00:00:03]} 22. Qd3 {[%clk 00:16:10]} {[%emt 00:00:17]} Bxd1
{[%clk 00:15:03]} {[%emt 00:00:10]} 23. Nxd1 {[%clk 00:16:14]} {[%emt
00:00:03]} Qe8 {[%clk 00:14:56]} {[%emt 00:00:08]} 24. Ne3 {[%clk 00:15:23]}
{[%emt 00:00:59]} Rd8 {[%clk 00:14:54]} {[%emt 00:00:08]} 25. Nd5 {[%clk
00:15:26]} {[%emt 00:00:02]} Rd7 {[%clk 00:14:09]} {[%emt 00:00:48]} 26. Bh6
{[%clk 00:14:30]} {[%emt 00:01:03]} Rxd5 {[%clk 00:13:23]} {[%emt 00:00:51]} 27.
Qxd5 {[%clk 00:14:32]} {[%emt 00:00:03]} Bxh6 {[%clk 00:13:24]} {[%emt
00:00:03]} 28. Qxc5 {[%clk 00:14:16]} {[%emt 00:00:22]} Qxe4 {[%clk 00:13:02]}
{[%emt 00:00:27]} 29. Qxa7 {[%clk 00:14:12]} {[%emt 00:00:08]} Qxc4 {[%clk
00:13:02]} {[%emt 00:00:05]} 30. Qb8+ {[%clk 00:14:07]} {[%emt 00:00:10]} Bf8
{[%clk 00:13:01]} {[%emt 00:00:06]} 31. Qa8 {[%clk 00:14:00]} {[%emt 00:00:12]}
Qc1+ {[%clk 00:12:57]} {[%emt 00:00:09]} 32. Kg2 {[%clk 00:14:04]} {[%emt
00:00:01]} Qa3 {[%clk 00:13:00]} {[%emt 00:00:03]} 33. Qd5 {[%clk 00:14:00]}
{[%emt 00:00:09]} Qa4 {[%clk 00:12:55]} {[%emt 00:00:08]} 34. Kh2 {[%clk
00:13:54]} {[%emt 00:00:12]} h5 {[%clk 00:12:50]} {[%emt 00:00:09]} 35. Kg1
{[%clk 00:13:53]} {[%emt 00:00:07]} h4 {[%clk 00:12:50]} {[%emt 00:00:05]} 36.
gxh4 {[%clk 00:13:30]} {[%emt 00:00:28]} Qxh4 {[%clk 00:12:50]} {[%emt
00:00:04]} 37. Qa8 {[%clk 00:13:32]} {[%emt 00:00:04]} Qg4+ {[%clk 00:12:46]}
{[%emt 00:00:06]} 38. Kf1 {[%clk 00:13:28]} {[%emt 00:00:12]} Qh3+ {[%clk
00:12:09]} {[%emt 00:00:42]} 39. Kg1 {[%clk 00:13:25]} {[%emt 00:00:08]} Qa3
{[%clk 00:12:05]} {[%emt 00:00:09]} 40. Qd5 {[%clk 00:13:27]} {[%emt 00:00:03]}
Qa4 {[%clk 00:11:34]} {[%emt 00:00:35]} 41. Kf1 {[%clk 00:13:06]} {[%emt
00:00:27]} Qb4 {[%clk 00:11:11]} {[%emt 00:00:23]} 42. Qa8 {[%clk 00:13:06]}
{[%emt 00:00:09]} Qa3 {[%clk 00:10:31]} {[%emt 00:00:46]} 43. Qd5 {[%clk
00:13:08]} {[%emt 00:00:03]} Kg7 {[%clk 00:10:35]} {[%emt 00:00:01]} 44. Qd4+
{[%clk 00:13:00]} {[%emt 00:00:13]} Kg8 {[%clk 00:10:10]} {[%emt 00:00:28]} 45.
Qd5 {[%clk 00:13:02]} {[%emt 00:00:05]} Be7 {[%clk 00:10:01]} {[%emt 00:00:11]}
46. Qc4 {[%clk 00:13:04]} {[%emt 00:00:06]} Kg7 {[%clk 00:10:00]} {[%emt
00:00:05]} 47. Qd4+ {[%clk 00:13:04]} {[%emt 00:00:05]} Bf6 {[%clk 00:10:04]}
{[%emt 00:00:02]} 48. Qd5 {[%clk 00:13:08]} {[%emt 00:00:01]} Qb4 {[%clk
00:10:01]} {[%emt 00:00:06]} 49. Qa8 {[%clk 00:12:57]} {[%emt 00:00:18]} Bd4
{[%clk 00:09:59]} {[%emt 00:00:07]} 50. Qf3 {[%clk 00:11:46]} {[%emt 00:01:15]}
Qb1+ {[%clk 00:09:50]} {[%emt 00:00:11]} 51. Kg2 {[%clk 00:11:48]} {[%emt
00:00:05]} Qxa2 {[%clk 00:09:54]} {[%emt 00:00:02]} 52. Kh1 {[%clk 00:11:45]}
{[%emt 00:00:09]} Qe6 {[%clk 00:09:39]} {[%emt 00:00:19]} 53. Kg2 {[%clk
00:11:42]} {[%emt 00:00:08]} Qf6 {[%clk 00:09:42]} {[%emt 00:00:02]} 54. Qg3
{[%clk 00:11:29]} {[%emt 00:00:18]} Qxf2+ {[%clk 00:09:33]} {[%emt 00:00:14]}
55. Kh1 {[%clk 00:11:17]} {[%emt 00:00:17]} Qg1+ {[%clk 00:09:25]} {[%emt
00:00:12]} 56. Qxg1 {[%clk 00:11:21]} {[%emt 00:00:01]} Bxg1 {[%clk 00:09:28]}
{[%emt 00:00:03]} 57. Kxg1 {[%clk 00:11:25]} Kf6 {[%clk 00:09:31]} {[%emt
00:00:02]} 58. Kf2 {[%clk 00:11:29]} {[%emt 00:00:02]} Kg5 {[%clk 00:09:34]}
{[%emt 00:00:02]} 59. Kg3 {[%clk 00:11:33]} {[%emt 00:00:01]} f6 {[%clk
00:09:37]} {[%emt 00:00:02]} 60. Kf3 {[%clk 00:11:37]} {[%emt 00:00:01]} Kh4
{[%clk 00:09:41]} {[%emt 00:00:01]} 61. Kf4 {[%clk 00:11:41]} {[%emt 00:00:01]}
Kh3 {[%clk 00:09:44]} {[%emt 00:00:02]} 62. Kf3 {[%clk 00:11:44]} {[%emt
00:00:02]} g5 {[%clk 00:09:46]} {[%emt 00:00:03]} 63. Kf2 {[%clk 00:11:48]}
{[%emt 00:00:01]} Kh2 {[%clk 00:09:50]} {[%emt 00:00:01]} 64. Kf3 {[%clk
00:11:52]} {[%emt 00:00:01]} f5 {[%clk 00:09:54]} {[%emt 00:00:01]} 65. Ke3
{[%clk 00:11:56]} g4 {[%clk 00:09:58]} {[%emt 00:00:01]} 66. Kf4 {[%clk
00:12:00]} g3 {[%clk 00:10:01]} {[%emt 00:00:02]} 67. Kg5 {[%clk 00:12:02]}
{[%emt 00:00:03]} g2 {[%clk 00:10:05]} {[%emt 00:00:02]} 68. Kf6 {[%clk
00:12:06]} {[%emt 00:00:01]} g1=Q {[%emt 00:00:16]} 69. Ke5 {[%clk 00:12:04]}
{[%emt 00:00:02]} f4 {[%clk 00:10:06]} {[%emt 00:00:03]} 70. Ke4 {[%clk
00:12:07]} {[%emt 00:00:01]} f3 {[%clk 00:10:09]} {[%emt 00:00:02]} 71. Kf4
{[%clk 00:12:10]} {[%emt 00:00:02]} f2 {[%clk 00:10:11]} {[%emt 00:00:03]} 72.
Ke4 {[%clk 00:12:12]} {[%emt 00:00:03]} f1=R {[%clk 00:10:06]} {[%emt
00:00:10]} 73. Ke5 {[%clk 00:12:14]} {[%emt 00:00:03]} Rf2 {[%clk 00:10:07]}
{[%emt 00:00:03]} 74. Kd5 {[%clk 00:12:18]} {[%emt 00:00:02]} Qe1 {[%clk
00:10:10]} {[%emt 00:00:01]} 75. Kc6 {[%clk 00:12:22]} {[%emt 00:00:02]} 0-1

[Event "MCR rapid mládeže 2023 U16"]
[Site "Harachov, Czech Republic"]
[Date "2023.09.09"]
[Round "3.23"]
[White "Kratka, Tereza"]
[Black "Vancakova, Veronika"]
[Result "0-1"]
[TimeControl "20min+5s/move"]
[WhiteElo "1147"]
[BlackElo "1433"]

1. c4 {[%clk 00:20:08]} {[%emt 00:00:02]} Nf6 {[%clk 00:20:09]} {[%emt
00:00:01]} 2. Nc3 {[%clk 00:20:07]} {[%emt 00:00:06]} g6 {[%clk 00:20:13]}
{[%emt 00:00:02]} 3. g3 {[%clk 00:20:11]} {[%emt 00:00:01]} Bg7 {[%clk
00:20:12]} {[%emt 00:00:05]} 4. Bg2 {[%clk 00:20:15]} {[%emt 00:00:02]} O-O
{[%clk 00:20:15]} {[%emt 00:00:01]} 5. Nf3 {[%clk 00:20:18]} {[%emt 00:00:02]}
d6 {[%clk 00:20:16]} {[%emt 00:00:04]} 6. O-O {[%clk 00:20:21]} {[%emt
00:00:03]} e5 {[%clk 00:20:19]} {[%emt 00:00:02]} 7. d3 {[%clk 00:20:15]}
{[%emt 00:00:10]} c6 {[%clk 00:19:38]} {[%emt 00:00:46]} 8. Bg5 {[%clk
00:20:08]} {[%emt 00:00:11]} h6 {[%clk 00:19:38]} {[%emt 00:00:06]} 9. Be3
{[%clk 00:20:11]} {[%emt 00:00:02]} Re8 {[%clk 00:19:16]} {[%emt 00:00:27]} 10.
Qd2 {[%clk 00:20:10]} {[%emt 00:00:05]} Kh7 {[%clk 00:19:14]} {[%emt 00:00:07]}
11. Rfe1 {[%clk 00:19:34]} {[%emt 00:00:42]} Ng4 {[%clk 00:19:12]} {[%emt
00:00:07]} 12. b4 {[%clk 00:19:06]} {[%emt 00:00:33]} Nxe3 {[%clk 00:19:08]}
{[%emt 00:00:09]} 13. Qxe3 {[%clk 00:18:25]} {[%emt 00:00:45]} d5 {[%clk
00:17:48]} {[%emt 00:01:25]} 14. cxd5 {[%clk 00:17:51]} {[%emt 00:00:39]} cxd5
{[%clk 00:17:50]} {[%emt 00:00:04]} 15. Qc5 {[%clk 00:17:46]} {[%emt 00:00:10]}
Be6 {[%clk 00:16:02]} {[%emt 00:01:54]} 16. Nd2 {[%clk 00:17:19]} {[%emt
00:00:31]} Nd7 {[%clk 00:14:50]} {[%emt 00:01:17]} 17. Qb5 {[%clk 00:16:05]}
{[%emt 00:01:16]} Nb6 {[%clk 00:13:08]} {[%emt 00:01:50]} 18. a3 {[%clk
00:13:49]} {[%emt 00:02:21]} a6 {[%clk 00:11:40]} {[%emt 00:01:32]} 19. Qa5
{[%clk 00:12:49]} {[%emt 00:01:05]} e4 {[%clk 00:07:32]} {[%emt 00:04:14]} 20.
Rac1 {[%clk 00:12:51]} {[%emt 00:00:03]} f5 {[%clk 00:05:15]} {[%emt 00:02:22]}
21. Red1 {[%clk 00:12:22]} {[%emt 00:00:33]} d4 {[%clk 00:03:17]} {[%emt
00:02:03]} 22. Na4 {[%clk 00:11:46]} {[%emt 00:00:42]} Nxa4 {[%clk 00:03:10]}
{[%emt 00:00:12]} 23. Qxa4 {[%clk 00:11:48]} {[%emt 00:00:02]} Bd5 {[%clk
00:02:07]} {[%emt 00:01:09]} 24. Qc2 {[%clk 00:10:48]} {[%emt 00:01:04]} e3
{[%clk 00:01:19]} {[%emt 00:00:54]} 25. fxe3 {[%clk 00:10:17]} {[%emt
00:00:36]} Bxg2 {[%clk 00:01:11]} {[%emt 00:00:12]} 26. Kxg2 {[%clk 00:10:15]}
{[%emt 00:00:07]} Rxe3 {[%clk 00:00:35]} {[%emt 00:00:41]} 27. Nf3 {[%clk
00:09:27]} {[%emt 00:00:54]} Qe7 {[%clk 00:00:24]} {[%emt 00:00:16]} 28. Re1
{[%clk 00:09:13]} {[%emt 00:00:18]} Re8 {[%clk 00:00:27]} {[%emt 00:00:02]} 29.
Kf2 {[%clk 00:08:54]} {[%emt 00:00:24]} Qe6 {[%clk 00:00:10]} {[%emt 00:00:22]}
30. Rcd1 {[%clk 00:08:36]} {[%emt 00:00:23]} Rc8 {[%clk 00:00:11]} {[%emt
00:00:05]} 31. Qb2 {[%clk 00:08:28]} {[%emt 00:00:13]} Qd5 {[%clk 00:00:11]}
{[%emt 00:00:04]} 32. Rd2 {[%clk 00:07:54]} {[%emt 00:00:39]} g5 {[%clk
00:00:10]} {[%emt 00:00:07]} 33. Rc1 {[%clk 00:06:56]} {[%emt 00:01:02]} Rxc1
{[%clk 00:00:09]} {[%emt 00:00:07]} 34. Qxc1 {[%clk 00:06:52]} {[%emt
00:00:10]} g4 {[%clk 00:00:08]} {[%emt 00:00:05]} 35. Nh4 {[%clk 00:06:08]}
{[%emt 00:00:48]} Qe5 {[%clk 00:00:08]} {[%emt 00:00:05]} 36. Ng2 {[%clk
00:05:47]} {[%emt 00:00:26]} f4 {[%clk 00:00:06]} {[%emt 00:00:08]} 37. Nxf4
{[%clk 00:05:21]} {[%emt 00:00:30]} Bf6 {[%clk 00:00:02]} {[%emt 00:00:05]} 38.
Qc5 {[%clk 00:04:25]} {[%emt 00:01:01]} Qxc5 {[%clk 00:00:07]} {[%emt
00:00:05]} 39. bxc5 {[%clk 00:04:29]} Re5 {[%clk 00:00:10]} {[%emt 00:00:03]}
40. Rc2 {[%clk 00:03:56]} {[%emt 00:00:37]} Be7 {[%clk 00:00:06]} {[%emt
00:00:09]} 41. c6 {[%clk 00:03:22]} {[%emt 00:00:39]} bxc6 {[%clk 00:00:07]}
{[%emt 00:00:04]} 42. Rxc6 {[%clk 00:03:25]} {[%emt 00:00:02]} Bxa3 {[%clk
00:00:09]} {[%emt 00:00:03]} 43. Rxa6 {[%clk 00:03:14]} {[%emt 00:00:16]} Bc1
{[%clk 00:00:10]} {[%emt 00:00:03]} 44. Ra7+ {[%clk 00:02:51]} {[%emt
00:00:28]} Kg8 {[%clk 00:00:11]} {[%emt 00:00:04]} 45. Rc7 {[%clk 00:02:40]}
{[%emt 00:00:16]} Be3+ {[%clk 00:00:13]} {[%emt 00:00:03]} 46. Ke1 {[%clk
00:02:32]} {[%emt 00:00:13]} Rb5 {[%clk 00:00:12]} {[%emt 00:00:06]} 47. Rc8+
{[%clk 00:01:41]} {[%emt 00:00:57]} Kf7 {[%clk 00:00:14]} {[%emt 00:00:03]} 48.
Rc7+ {[%clk 00:00:49]} {[%emt 00:00:56]} Ke8 {[%clk 00:00:11]} {[%emt
00:00:08]} 49. Kd1 {[%clk 00:00:17]} {[%emt 00:00:38]} Rb1+ {[%clk 00:00:11]}
{[%emt 00:00:06]} 50. Kc2 {[%clk 00:00:19]} {[%emt 00:00:03]} Rc1+ {[%clk
00:00:10]} {[%emt 00:00:05]} 51. Kb3 {[%clk 00:00:19]} {[%emt 00:00:04]} Rxc7
{[%clk 00:00:13]} {[%emt 00:00:02]} 52. Nd5 {[%clk 00:00:23]} {[%emt 00:00:02]}
Rc8 {[%clk 00:00:10]} {[%emt 00:00:08]} 53. Nxe3 {[%clk 00:00:26]} {[%emt
00:00:02]} dxe3 {[%clk 00:00:14]} {[%emt 00:00:01]} 54. Kb4 {[%clk 00:00:28]}
{[%emt 00:00:03]} Rc2 {[%clk 00:00:17]} {[%emt 00:00:02]} 55. Kb3 {[%clk
00:00:29]} {[%emt 00:00:03]} Rxe2 {[%clk 00:00:20]} {[%emt 00:00:02]} 56. Kc4
{[%clk 00:00:33]} {[%emt 00:00:01]} Rxh2 {[%clk 00:00:23]} {[%emt 00:00:02]}
0-1

[Event "MCR rapid mládeže 2023 U16"]
[Site "Harachov, Czech Republic"]
[Date "2023.09.09"]
[Round "3.24"]
[White "Hujova, Tess"]
[Black "Nova, Anezka"]
[Result "0-1"]
[TimeControl "20min+5s/move"]
[WhiteElo "1104"]
[BlackElo "1382"]

1. e4 {[%clk 00:20:22]} {[%emt 00:00:08]} e6 {[%clk 00:20:29]} {[%emt
00:00:01]} 2. d4 {[%clk 00:20:25]} {[%emt 00:00:02]} d5 {[%clk 00:20:34]}
{[%emt 00:00:02]} 3. exd5 exd5 {[%clk 00:20:38]} 4. Bd3 {[%clk 00:20:13]}
{[%emt 00:00:06]} Nf6 {[%clk 00:20:32]} {[%emt 00:00:11]} 5. Be3 {[%clk
00:19:58]} {[%emt 00:00:20]} Bd6 {[%clk 00:20:25]} {[%emt 00:00:12]} 6. Nf3
{[%clk 00:19:43]} {[%emt 00:00:19]} O-O {[%clk 00:20:23]} {[%emt 00:00:07]} 7.
Nc3 {[%clk 00:19:27]} {[%emt 00:00:22]} Bg4 {[%clk 00:20:04]} {[%emt 00:00:18]}
8. O-O {[%clk 00:19:23]} {[%emt 00:00:09]} c6 {[%clk 00:19:58]} {[%emt
00:00:17]} 9. h3 {[%clk 00:18:46]} {[%emt 00:00:41]} Bh5 {[%clk 00:19:51]}
{[%emt 00:00:13]} 10. Be2 {[%clk 00:17:56]} {[%emt 00:00:54]} Nbd7 {[%clk
00:19:31]} {[%emt 00:00:25]} 11. Bg5 {[%clk 00:16:14]} {[%emt 00:01:48]} Re8
{[%clk 00:18:51]} {[%emt 00:00:45]} 12. Re1 {[%clk 00:15:49]} {[%emt 00:00:28]}
Qc7 {[%clk 00:17:47]} {[%emt 00:01:09]} 13. Qd2 {[%clk 00:15:11]} {[%emt
00:00:44]} h6 {[%clk 00:16:26]} {[%emt 00:01:26]} 14. Bxf6 {[%clk 00:14:43]}
{[%emt 00:00:33]} Nxf6 {[%clk 00:16:23]} {[%emt 00:00:09]} 15. Rad1 {[%clk
00:14:21]} {[%emt 00:00:26]} Re7 {[%clk 00:15:34]} {[%emt 00:00:54]} 16. Nh4
{[%clk 00:11:01]} {[%emt 00:03:24]} Bxe2 {[%clk 00:13:41]} {[%emt 00:01:59]} 17.
Rxe2 {[%clk 00:10:53]} {[%emt 00:00:14]} Rae8 {[%clk 00:12:43]} {[%emt
00:01:03]} 18. Rxe7 {[%clk 00:10:11]} {[%emt 00:00:47]} Qxe7 {[%clk 00:11:50]}
{[%emt 00:00:58]} 19. Nf5 {[%clk 00:09:51]} {[%emt 00:00:25]} Qe6 {[%clk
00:11:45]} {[%emt 00:00:09]} 20. Nxd6 {[%clk 00:09:39]} {[%emt 00:00:18]} Qxd6
{[%clk 00:11:49]} {[%emt 00:00:01]} 21. f3 {[%clk 00:08:09]} {[%emt 00:01:34]}
Qg3 {[%clk 00:10:23]} {[%emt 00:01:32]} 22. Qf2 {[%clk 00:07:46]} {[%emt
00:00:27]} Nh5 {[%clk 00:09:23]} {[%emt 00:01:04]} 23. Qxg3 {[%clk 00:07:12]}
{[%emt 00:00:41]} Nxg3 {[%clk 00:09:27]} {[%emt 00:00:01]} 24. Kf2 {[%clk
00:06:46]} {[%emt 00:00:31]} Nf5 {[%clk 00:09:28]} {[%emt 00:00:02]} 25. Ne2
{[%clk 00:05:38]} {[%emt 00:01:14]} Ne3 {[%clk 00:08:29]} {[%emt 00:01:04]} 26.
Rd2 {[%clk 00:05:26]} {[%emt 00:00:17]} Nc4 {[%clk 00:08:26]} {[%emt 00:00:08]}
27. Rd3 {[%clk 00:05:13]} {[%emt 00:00:16]} Nxb2 {[%emt 00:02:02]} 28. Rb3
{[%clk 00:05:13]} {[%emt 00:00:03]} Nd1+ {[%clk 00:06:35]} {[%emt 00:00:02]} 29.
Ke1 {[%clk 00:05:02]} {[%emt 00:00:15]} Ne3 {[%clk 00:06:35]} {[%emt 00:00:04]}
30. Kd2 {[%clk 00:04:57]} {[%emt 00:00:10]} Nc4+ {[%clk 00:06:37]} {[%emt
00:00:05]} 31. Ke1 {[%clk 00:04:44]} {[%emt 00:00:16]} b5 {[%clk 00:06:09]}
{[%emt 00:00:35]} 32. g3 {[%clk 00:03:48]} {[%emt 00:01:01]} Kf8 {[%clk
00:05:16]} {[%emt 00:00:58]} 33. Kf2 {[%clk 00:03:31]} {[%emt 00:00:21]} a5
{[%clk 00:04:48]} {[%emt 00:00:34]} 34. c3 {[%clk 00:01:49]} {[%emt 00:01:45]}
Ke7 {[%clk 00:04:06]} {[%emt 00:00:48]} 35. Nf4 {[%clk 00:01:35]} {[%emt
00:00:20]} g6 {[%clk 00:03:15]} {[%emt 00:00:56]} 36. Rb1 {[%clk 00:01:21]}
{[%emt 00:00:19]} Kd6 {[%clk 00:02:42]} {[%emt 00:00:35]} 37. Nd3 {[%clk
00:00:52]} {[%emt 00:00:35]} Re3 {[%clk 00:01:41]} {[%emt 00:01:08]} 38. Rd1
{[%clk 00:00:35]} {[%emt 00:00:21]} Re7 {[%clk 00:01:09]} {[%emt 00:00:33]} 39.
Nc5 {[%clk 00:00:25]} {[%emt 00:00:21]} f5 {[%clk 00:00:35]} {[%emt 00:00:39]}
40. Rd3 {[%clk 00:00:07]} {[%emt 00:00:21]} Nb2 {[%clk 00:00:28]} {[%emt
00:00:15]} 41. Rd2 {[%clk 00:00:11]} {[%emt 00:00:01]} Nc4 {[%clk 00:00:31]} 42.
Rd3 {[%clk 00:00:15]} {[%emt 00:00:01]} g5 {[%clk 00:00:27]} {[%emt 00:00:09]}
43. Rd1 {[%clk 00:00:18]} {[%emt 00:00:02]} h5 {[%clk 00:00:29]} {[%emt
00:00:03]} 44. Rd3 {[%clk 00:00:14]} {[%emt 00:00:09]} b4 {[%clk 00:00:25]}
{[%emt 00:00:09]} 0-1